fUST/lending_fUST_20250516
["ID","MTS","AMOUNT","RATE_DAILY","PERIOD"]
[361223903,1747361434170,-420.0,0.00013067,2]
[361223904,1747361434180,-282.29909371,0.00013364,2]
[361223905,1747361434191,-287.868714,0.00013586,2]
[361223906,1747361434201,-287.868714,0.00013586,2]
[361223907,1747361434210,-328.46217052,0.00013662,2]
[361223908,1747361434220,-500.0,0.00013673,2]
[361223909,1747361434229,-500.0,0.00013673,2]
[361223910,1747361434239,-501.99786985,0.00013673,2]
[361223911,1747361434248,-500.0,0.00013673,2]
[361223912,1747361434258,-500.0,0.00013673,2]
[361223913,1747361434267,-500.0,0.00013673,2]
[361223914,1747361434277,-500.0,0.00013673,2]
[361223915,1747361434287,-500.0,0.00013673,2]
[361223916,1747361434296,-500.0,0.00013673,2]
[361223917,1747361434306,-505.04484346,0.00013673,2]
[361223918,1747361434316,-500.0,0.00013673,2]
[361223919,1747361434325,-500.0,0.00013673,2]
[361223920,1747361434335,-502.05153447,0.00013673,2]
[361223921,1747361434344,-500.0,0.00013673,2]
[361223922,1747361434354,-500.0,0.00013673,2]
[361223923,1747361434364,-270.03407992,0.00013673,2]
[361223924,1747361434373,-341.7293311,0.00013673,2]
[361223925,1747361434382,-500.69561883,0.00013673,2]
[361223926,1747361434391,-502.02147889,0.00013673,2]
[361223927,1747361434401,-412.91552192,0.00013673,2]
[361223928,1747361434410,-500.0,0.00013673,2]
[361223929,1747361434422,-151.604477,0.00013698,2]
[361223930,1747361434432,-405.66710284,0.00013698,2]
[361223931,1747361434443,-738.24,0.00013698,2]
[361223932,1747361434453,-401.92472529,0.00013698,2]
[361223933,1747361434462,-269.47124472,0.00013698,2]
[361223934,1747361434472,-450.0,0.00013698,2]
[361223935,1747361434482,-450.0,0.00013698,2]
[361223936,1747361434491,-407.33173128,0.00013698,2]
[361223937,1747361434500,-404.02483642,0.00013698,2]
[361223938,1747361434509,-402.12197523,0.00013698,2]
[361223939,1747361434519,-401.50797058,0.00013698,2]
[361223940,1747361434530,-402.18717236,0.00013698,2]
[361223941,1747361434540,-450.0,0.00013698,2]
[361223942,1747361434549,-406.4761185,0.00013698,2]
[361223943,1747361434558,-402.78304416,0.00013698,2]
[361223944,1747361434568,-410.34455949,0.00013698,2]
[361223945,1747361434578,-400.00215032,0.00013698,2]
[361223946,1747361434587,-450.0,0.00013698,2]
[361223947,1747361434596,-401.76646501,0.00013698,2]
[361223948,1747361434606,-405.21156125,0.00013698,2]
[361223949,1747361434616,-403.83292754,0.00013698,2]
[361223950,1747361434625,-450.0,0.00013698,2]
[361223951,1747361434634,-403.12646227,0.00013698,2]
[361223952,1747361434643,-401.3762871,0.00013698,2]
[361223953,1747361434652,-406.31743981,0.00013698,2]
[361223954,1747361434660,-403.18845886,0.00013698,2]
[361223955,1747361434669,-405.98397211,0.00013698,2]
[361223956,1747361434679,-402.23433729,0.00013698,2]
[361223957,1747361434688,-411.91633446,0.00013698,2]
[361223958,1747361434698,-411.91997806,0.00013698,2]
[361223959,1747361434708,-450.0,0.00013698,2]
[361223960,1747361434717,-450.0,0.00013698,2]
[361223961,1747361434726,-402.21455388,0.00013698,2]
[361223962,1747361434736,-408.44497261,0.00013698,2]
[361223963,1747361434745,-409.53845003,0.00013698,2]
[361223964,1747361434754,-408.35257473,0.00013698,2]
[361223965,1747361434763,-450.0,0.00013698,2]
[361223966,1747361434773,-411.0360767,0.00013698,2]
[361223967,1747361434782,-400.0,0.00013698,2]
[361223968,1747361434791,-402.67519304,0.00013698,2]
[361223969,1747361434801,-402.34638088,0.00013698,2]
[361223970,1747361434810,-402.54210647,0.00013698,2]
[361223971,1747361434820,-698.93,0.00013698,2]
[361223972,1747361434829,-401.80105989,0.00013698,2]
[361223973,1747361434839,-280.39908177,0.00013698,2]
[361223974,1747361434848,-411.16655609,0.00013698,2]
[361223975,1747361434858,-503.9709523,0.00013698,2]
[361223976,1747361434867,-420.22754782,0.00013698,2]
[361223977,1747361434877,-450.0,0.00013698,2]
[361223978,1747361434887,-403.87110084,0.00013698,2]
[361223979,1747361434896,-402.68422921,0.00013698,2]
[361223980,1747361434907,-161.65340564,0.00013698,2]
[361223981,1747361434916,-404.67506003,0.00013698,2]
[361223982,1747361434925,-450.0,0.00013698,2]
[361223983,1747361434935,-406.95676295,0.00013698,2]
[361223984,1747361434946,-450.0,0.00013698,2]
[361223985,1747361434955,-412.32319723,0.00013698,2]
[361223986,1747361434965,-450.0,0.00013698,2]
[361223987,1747361434974,-401.94206687,0.00013698,2]
[361223988,1747361434983,-402.3237096,0.00013698,2]
[361223989,1747361434993,-940.42,0.00013698,2]
[361223990,1747361435002,-401.05879802,0.00013698,2]
[361223991,1747361435011,-400.0,0.00013698,2]
[361223992,1747361435021,-400.0,0.00013698,2]
[361223993,1747361435030,-431.81950213,0.00013698,2]
[361223994,1747361435039,-408.03870901,0.00013698,2]
[361223995,1747361435049,-548.48,0.00013698,2]
[361223996,1747361435058,-450.0,0.00013698,2]
[361223997,1747361435068,-506.61912264,0.00013698,2]
[361223998,1747361435077,-401.27672285,0.00013698,2]
[361223999,1747361435086,-403.69071492,0.00013698,2]
[361224000,1747361435096,-450.0,0.00013698,2]
[361224001,1747361435105,-410.3686278,0.00013698,2]
[361224002,1747361435114,-401.56025637,0.00013698,2]
[361224003,1747361435123,-902.15,0.00013698,2]
[361224004,1747361435132,-450.0,0.00013698,2]
[361224005,1747361435141,-366.67622707,0.00013698,2]
[361224006,1747361435150,-404.61105424,0.00013698,2]
[361224007,1747361435159,-450.0,0.00013698,2]
[361224008,1747361435167,-1009.25986076,0.00013698,2]
[361224009,1747361435177,-450.0,0.00013698,2]
[361224010,1747361435186,-407.22943917,0.00013698,2]
[361224011,1747361435197,-461.38724069,0.00013698,2]
[361224012,1747361435209,-450.0,0.00013698,2]
[361224013,1747361435219,-407.90872177,0.00013698,2]
[361224014,1747361435228,-944.47,0.00013698,2]
[361224015,1747361435237,-403.58886066,0.00013698,2]
[361224016,1747361435246,-450.0,0.00013698,2]
[361224017,1747361435255,-450.0,0.00013698,2]
[361224018,1747361435263,-621.92,0.00013698,2]
[361224019,1747361435272,-693.26,0.00013698,2]
[361224020,1747361435282,-450.0,0.00013698,2]
[361224021,1747361435451,-405.67448894,0.00013698,2]
[361224022,1747361435463,-450.0,0.00013698,2]
[361224023,1747361435473,-404.04342539,0.00013698,2]
[361224024,1747361435482,-450.0,0.00013698,2]
[361224025,1747361435491,-401.28944397,0.00013698,2]
[361224026,1747361435500,-726.25,0.00013698,2]
[361224027,1747361435509,-330.65792738,0.00013698,2]
[361224028,1747361435518,-450.0,0.00013698,2]
[361224029,1747361435529,-417.86452147,0.00013698,2]
[361224030,1747361435540,-416.33341659,0.00013698,2]
[361224031,1747361435549,-733.21,0.00013698,2]
[361224032,1747361435558,-418.26991076,0.00013698,2]
[361224033,1747361435567,-450.0,0.00013698,2]
[361224034,1747361435576,-450.0,0.00013698,2]
[361224035,1747361435586,-450.0,0.00013698,2]
[361224036,1747361435595,-612.77,0.00013698,2]
[361224037,1747361435604,-403.36586211,0.00013698,2]
[361224038,1747361435613,-416.50899358,0.00013698,2]
[361224039,1747361435622,-583.44,0.00013698,2]
[361224040,1747361435632,-450.0,0.00013698,2]
[361224041,1747361435641,-403.1636753,0.00013698,2]
[361224042,1747361435651,-405.36145882,0.00013698,2]
[361224043,1747361435659,-774.28,0.00013698,2]
[361224044,1747361435669,-412.11325109,0.00013698,2]
[361224045,1747361435679,-779.64,0.00013698,2]
[361224046,1747361435688,-1025.82425622,0.00013698,2]
[361224047,1747361435697,-450.0,0.00013698,2]
[361224048,1747361435706,-318.77049946,0.00013698,2]
[361224049,1747361435716,-450.0,0.00013698,2]
[361224050,1747361435725,-410.19209746,0.00013698,2]
[361224051,1747361435734,-410.24511152,0.00013698,2]
[361224052,1747361435743,-450.0,0.00013698,2]
[361224053,1747361435753,-403.18674629,0.00013698,2]
[361224054,1747361435762,-409.90714985,0.00013698,2]
[361224055,1747361435771,-1142.2,0.00013698,2]
[361224056,1747361435780,-415.39291333,0.00013698,2]
[361224057,1747361435789,-511.0,0.00013698,2]
[361224058,1747361435798,-404.16193216,0.00013698,2]
[361224059,1747361435808,-404.9950049,0.00013698,2]
[361224060,1747361435817,-408.41038921,0.00013698,2]
[361224061,1747361435826,-401.11402678,0.00013698,2]
[361224062,1747361435835,-420.46769382,0.00013698,2]
[361224063,1747361435844,-413.9216923,0.00013698,2]
[361224064,1747361435853,-407.54210918,0.00013698,2]
[361224065,1747361435862,-411.24740486,0.00013698,2]
[361224066,1747361435872,-450.0,0.00013698,2]
[361224067,1747361435881,-450.0,0.00013698,2]
[361224068,1747361435892,-392.34343225,0.00013698,2]
[361224069,1747361435903,-450.0,0.00013698,2]
[361224070,1747361435913,-450.0,0.00013698,2]
[361224071,1747361435922,-450.0,0.00013698,2]
[361224072,1747361435931,-407.38876461,0.00013698,2]
[361224073,1747361435941,-414.67128446,0.00013698,2]
[361224074,1747361435950,-410.37307756,0.00013698,2]
[361224075,1747361435959,-403.65965623,0.00013698,2]
[361224076,1747361435969,-188.0,0.00013698,2]
[361224077,1747361435977,-450.0,0.00013698,2]
[361224078,1747361435987,-401.22641171,0.00013698,2]
[361224079,1747361435996,-408.7377708,0.00013698,2]
[361224080,1747361436005,-450.0,0.00013698,2]
[361224081,1747361436014,-450.0,0.00013698,2]
[361224082,1747361436024,-547.28,0.00013698,2]
[361224083,1747361436033,-475.48571619,0.00013698,2]
[361224084,1747361436042,-408.69671609,0.00013698,2]
[361224085,1747361436052,-403.70683228,0.00013698,2]
[361224086,1747361436061,-409.59059771,0.00013698,2]
[361224087,1747361436070,-412.13104965,0.00013698,2]
[361224088,1747361436080,-450.0,0.00013698,2]
[361224089,1747361436089,-410.12969421,0.00013698,2]
[361224090,1747361436098,-408.96998996,0.00013698,2]
[361224091,1747361436107,-410.89601815,0.00013698,2]
[361224092,1747361436117,-600.09,0.00013698,2]
[361224093,1747361436126,-450.0,0.00013698,2]
[361224094,1747361436136,-404.0837883,0.00013698,2]
[361224095,1747361436147,-531.36,0.00013698,2]
[361224096,1747361436157,-409.33042249,0.00013698,2]
[361224097,1747361436166,-450.0,0.00013698,2]
[361224098,1747361436175,-662.17,0.00013698,2]
[361224099,1747361436185,-450.91993873,0.00013698,2]
[361224100,1747361436195,-450.0,0.00013698,2]
[361224101,1747361436204,-450.0,0.00013698,2]
[361224102,1747361436214,-403.17181879,0.00013698,2]
[361224103,1747361436223,-450.0,0.00013698,2]
[361224104,1747361436232,-401.72835359,0.00013698,2]
[361224105,1747361436241,-401.81926344,0.00013698,2]
[361224106,1747361436251,-415.61127192,0.00013698,2]
[361224107,1747361436260,-450.0,0.00013698,2]
[361224108,1747361436269,-284.25842993,0.00013698,2]
[361224109,1747361436279,-409.20899909,0.00013698,2]
[361224110,1747361436288,-351.61261247,0.00013698,2]
[361224111,1747361436297,-450.0,0.00013698,2]
[361224112,1747361436307,-422.9486653,0.00013698,2]
[361224113,1747361436316,-450.0,0.00013698,2]
[361224114,1747361436325,-574.17,0.00013698,2]
[361224115,1747361436335,-408.13420919,0.00013698,2]
[361224116,1747361436344,-173.224857,0.00013698,2]
[361224117,1747361436354,-173.224857,0.00013698,2]
[361224118,1747361436364,-173.224857,0.00013698,2]
[361224119,1747361436373,-173.224857,0.00013698,2]
[361224120,1747361436382,-173.224857,0.00013698,2]
[361224121,1747361436390,-173.224857,0.00013698,2]
[361224122,1747361436399,-409.35535016,0.00013698,2]
[361224123,1747361436409,-173.224857,0.00013698,2]
[361224124,1747361436418,-173.224857,0.00013698,2]
[361224125,1747361436427,-173.224857,0.00013698,2]
[361224126,1747361436436,-173.224857,0.00013698,2]
[361224127,1747361436445,-173.224857,0.00013698,2]
[361224128,1747361436454,-173.224857,0.00013698,2]
[361224129,1747361436463,-173.224857,0.00013698,2]
[361224130,1747361436472,-411.52195534,0.00013698,2]
[361224131,1747361436482,-173.224857,0.00013698,2]
[361224132,1747361436491,-173.224857,0.00013698,2]
[361224133,1747361436500,-173.224862,0.00013698,2]
[361224134,1747361436510,-402.01843253,0.00013698,2]
[361224135,1747361436519,-354.69359351,0.00013698,2]
[361224136,1747361436529,-409.35047089,0.00013698,2]
[361224137,1747361436540,-638.04,0.00013698,2]
[361224138,1747361436549,-408.4533306,0.00013698,2]
[361224139,1747361436559,-450.0,0.00013698,2]
[361224140,1747361436568,-450.0,0.00013698,2]
[361224141,1747361436578,-402.83404678,0.00013698,2]
[361224142,1747361436587,-450.0,0.00013698,2]
[361224143,1747361436597,-402.71754168,0.00013698,2]
[361224144,1747361436607,-450.0,0.00013698,2]
[361224145,1747361436618,-450.0,0.00013698,2]
[361224146,1747361436631,-415.71359046,0.00013698,2]
[361224147,1747361436645,-407.57608734,0.00013698,2]
[361224148,1747361436656,-710.5,0.00013698,2]
[361224149,1747361436666,-450.0,0.00013698,2]
[361224150,1747361436676,-414.49856951,0.00013698,2]
[361224151,1747361436686,-496.81,0.00013698,2]
[361224152,1747361436697,-721.54,0.00013698,2]
[361224153,1747361436707,-811.56,0.00013698,2]
[361224154,1747361436716,-404.03136692,0.00013698,2]
[361224155,1747361436725,-450.0,0.00013698,2]
[361224156,1747361436735,-450.0,0.00013698,2]
[361224157,1747361436746,-401.66969314,0.00013698,2]
[361224158,1747361436755,-312.66632307,0.00013698,2]
[361224159,1747361436765,-422.91228294,0.00013698,2]
[361224160,1747361436774,-450.0,0.00013698,2]
[361224161,1747361436783,-450.0,0.00013698,2]
[361224162,1747361436792,-401.8984415,0.00013698,2]
[361224163,1747361436802,-450.0,0.00013698,2]
[361224164,1747361436811,-407.96596842,0.00013698,2]
[361224165,1747361436821,-403.31634274,0.00013698,2]
[361224166,1747361436829,-450.0,0.00013698,2]
[361224167,1747361436842,-463.34628999,0.00013698,2]
[361224168,1747361436851,-590.19,0.00013698,2]
[361224169,1747361436860,-401.75505417,0.00013698,2]
[361224170,1747361436869,-402.1124176,0.00013698,2]
[361224171,1747361436878,-407.27056654,0.00013698,2]
[361224172,1747361436888,-564.26,0.00013698,2]
[361224173,1747361436897,-450.0,0.00013698,2]
[361224174,1747361436907,-450.0,0.00013698,2]
[361224175,1747361436917,-412.38548351,0.00013698,2]
[361224176,1747361436927,-450.0,0.00013698,2]
[361224177,1747361436936,-450.0,0.00013698,2]
[361224178,1747361436946,-450.0,0.00013698,2]
[361224179,1747361436955,-450.0,0.00013698,2]
[361224180,1747361436965,-403.76849445,0.00013698,2]
[361224181,1747361436975,-413.63718341,0.00013698,2]
[361224182,1747361436984,-402.93547092,0.00013698,2]
[361224183,1747361436993,-450.0,0.00013698,2]
[361224184,1747361437003,-409.38693525,0.00013698,2]
[361224185,1747361437013,-404.30627586,0.00013698,2]
[361224186,1747361437023,-513.86,0.00013698,2]
[361224187,1747361437032,-409.88856744,0.00013698,2]
[361224188,1747361437041,-450.0,0.00013698,2]
[361224189,1747361437050,-413.56522488,0.00013698,2]
[361224190,1747361437059,-726.81,0.00013698,2]
[361224191,1747361437069,-450.0,0.00013698,2]
[361224192,1747361437079,-450.0,0.00013698,2]
[361224193,1747361437088,-1703.88,0.00013698,2]
[361224194,1747361437098,-450.0,0.00013698,2]
[361224195,1747361437107,-399.71143628,0.00013698,2]
[361224196,1747361437117,-406.70970429,0.00013698,2]
[361224197,1747361437126,-1217.6,0.00013698,2]
[361224198,1747361437135,-509.95398881,0.00013698,2]
[361224199,1747361437145,-483.39850118,0.00013698,2]
[361224200,1747361437154,-526.21,0.00013698,2]
[361224201,1747361437163,-401.83664063,0.00013698,2]
[361224202,1747361437172,-411.15926531,0.00013698,2]
[361224203,1747361437181,-213.59452276,0.00013698,2]
[361224204,1747361437191,-450.0,0.00013698,2]
[361224205,1747361437201,-1006.32,0.00013698,2]
[361224206,1747361437210,-450.0,0.00013698,2]
[361224207,1747361437220,-450.0,0.00013698,2]
[361224208,1747361437229,-450.0,0.00013698,2]
[361224209,1747361437238,-450.0,0.00013698,2]
[361224210,1747361437248,-1999.67,0.00013698,2]
[361224211,1747361437257,-450.0,0.00013698,2]
[361224212,1747361437266,-403.38915361,0.00013698,2]
[361224213,1747361437275,-450.0,0.00013698,2]
[361224214,1747361437285,-450.0,0.00013698,2]
[361224215,1747361437294,-401.85422467,0.00013698,2]
[361224216,1747361437303,-450.0,0.00013698,2]
[361224217,1747361437312,-414.532502,0.00013698,2]
[361224218,1747361437322,-878.89,0.00013698,2]
[361224219,1747361437331,-450.0,0.00013698,2]
[361224220,1747361437340,-450.0,0.00013698,2]
[361224221,1747361437349,-408.15407007,0.00013698,2]
[361224222,1747361437359,-450.0,0.00013698,2]
[361224223,1747361437368,-287.868714,0.00013698,2]
[361224224,1747361437377,-287.868714,0.00013698,2]
[361224225,1747361437386,-506.23,0.00013698,2]
[361224226,1747361437395,-287.868714,0.00013698,2]
[361224227,1747361437404,-287.868714,0.00013698,2]
[361224228,1747361437413,-287.868714,0.00013698,2]
[361224229,1747361437423,-287.868714,0.00013698,2]
[361224230,1747361437432,-287.868714,0.00013698,2]
[361224231,1747361437442,-287.868714,0.00013698,2]
[361224232,1747361437452,-287.868714,0.00013698,2]
[361224233,1747361437461,-287.868714,0.00013698,2]
[361224234,1747361437471,-287.868714,0.00013698,2]
[361224235,1747361437480,-287.868714,0.00013698,2]
[361224236,1747361437489,-287.868714,0.00013698,2]
[361224237,1747361437498,-287.868714,0.00013698,2]
[361224238,1747361437508,-287.868714,0.00013698,2]
[361224239,1747361437517,-287.868714,0.00013698,2]
[361224240,1747361437527,-287.868714,0.00013698,2]
[361224241,1747361437541,-1607.94,0.00013698,2]
[361224242,1747361437549,-287.868716,0.00013698,2]
[361224243,1747361437558,-841.63,0.00013698,2]
[361224244,1747361437568,-512.14,0.00013698,2]
[361224245,1747361437579,-1895.3,0.00013698,2]
[361224246,1747361437588,-2278.07,0.00013698,2]
[361224247,1747361437597,-450.0,0.00013698,2]
[361224248,1747361437605,-450.0,0.00013698,2]
[361224249,1747361437614,-672.66,0.00013698,2]
[361224250,1747361437624,-1047.32,0.00013698,2]
[361224251,1747361437634,-697.7,0.00013698,2]
[361224252,1747361437643,-409.07911389,0.00013698,2]
[361224253,1747361437652,-382.07266737,0.00013698,2]
[361224254,1747361437661,-450.0,0.00013698,2]
[361224255,1747361437670,-407.65757874,0.00013698,2]
[361224257,1747361437679,-1450.32,0.00013698,2]
[361224258,1747361437688,-407.51207344,0.00013698,2]
[361224259,1747361437699,-8544.13,0.00013698,2]
[361224260,1747361437708,-935.81,0.00013698,2]
[361224261,1747361437717,-725.39,0.00013698,2]
[361224262,1747361437727,-345.46771695,0.00013698,2]
[361224263,1747361437736,-295.9105412,0.00013698,2]
[361224264,1747361437746,-450.0,0.00013698,2]
[361224265,1747361437755,-410.48379358,0.00013698,2]
[361224266,1747361437765,-406.79873,0.00013698,2]
[361224267,1747361437774,-998.02,0.00013698,2]
[361224268,1747361437783,-410.87213299,0.00013698,2]
[361224269,1747361437793,-450.0,0.00013698,2]
[361224270,1747361437803,-450.0,0.00013698,2]
[361224271,1747361437812,-450.0,0.00013698,2]
[361224272,1747361437821,-450.0,0.00013698,2]
[361224273,1747361437831,-403.74443085,0.00013698,2]
[361224274,1747361437840,-450.0,0.00013698,2]
[361224275,1747361437850,-480.61,0.00013698,2]
[361224276,1747361437860,-621.91,0.00013698,2]
[361224277,1747361437869,-405.23300429,0.00013698,2]
[361224278,1747361437878,-2125.11,0.00013698,2]
[361224280,1747361437887,-8114.98,0.00013698,2]
[361224281,1747361437896,-450.0,0.00013698,2]
[361224282,1747361437906,-402.96343212,0.00013698,2]
[361224284,1747361437915,-360.95113158,0.00013698,2]
[361224286,1747361437924,-401.53586074,0.00013698,2]
[361224288,1747361437934,-450.0,0.00013698,2]
[361224290,1747361437945,-450.0,0.00013698,2]
[361224292,1747361437955,-7439.93,0.00013698,2]
[361224294,1747361437965,-406.83211273,0.00013698,2]
[361224296,1747361437975,-450.0,0.00013698,2]
[361224298,1747361437984,-450.0,0.00013698,2]
[361224300,1747361437994,-450.0,0.00013698,2]
[361224302,1747361438003,-500.2749625,0.00013698,2]
[361224304,1747361438013,-450.0,0.00013698,2]
[361224306,1747361438023,-450.0,0.00013698,2]
[361224308,1747361438033,-450.0,0.00013698,2]
[361224310,1747361438043,-403.97545771,0.00013698,2]
[361224312,1747361438053,-450.0,0.00013698,2]
[361224314,1747361438062,-410.48993476,0.00013698,2]
[361224316,1747361438071,-661.98,0.00013698,2]
[361224318,1747361438081,-450.0,0.00013698,2]
[361224320,1747361438091,-450.0,0.00013698,2]
[361224322,1747361438100,-450.0,0.00013698,2]
[361224324,1747361438110,-2269.17,0.00013698,2]
[361224326,1747361438119,-489.2,0.00013698,2]
[361224328,1747361438128,-450.0,0.00013698,2]
[361224330,1747361438138,-450.0,0.00013698,2]
[361224332,1747361438149,-406.22204791,0.00013698,2]
[361224334,1747361438158,-896.23,0.00013698,2]
[361224336,1747361438167,-450.0,0.00013698,2]
[361224338,1747361438177,-1565.75,0.00013698,2]
[361224340,1747361438188,-577.07,0.00013698,2]
[361224343,1747361438198,-450.0,0.00013698,2]
[361224346,1747361438207,-450.0,0.00013698,2]
[361224349,1747361438216,-450.0,0.00013698,2]
[361224351,1747361438226,-350.8678635,0.00013698,2]
[361224353,1747361438235,-1062.1,0.00013698,2]
[361224355,1747361438244,-357.47030038,0.00013698,2]
[361224357,1747361438253,-1354.03,0.00013698,2]
[361224359,1747361438262,-450.0,0.00013698,2]
[361224361,1747361438271,-497.67,0.00013698,2]
[361224363,1747361438281,-1122.03,0.00013698,2]
[361224365,1747361438290,-1818.57,0.00013698,2]
[361224367,1747361438300,-450.0,0.00013698,2]
[361224369,1747361438309,-761.31,0.00013698,2]
[361224371,1747361438318,-1039.41,0.00013698,2]
[361224373,1747361438327,-450.0,0.00013698,2]
[361224375,1747361438337,-622.88,0.00013698,2]
[361224376,1747361438346,-580.38,0.00013698,2]
[361224377,1747361438356,-432.09147763,0.00013698,2]
[361224379,1747361438365,-450.0,0.00013698,2]
[361224380,1747361438374,-450.0,0.00013698,2]
[361224381,1747361438383,-450.0,0.00013698,2]
[361224383,1747361438392,-581.16,0.00013698,2]
[361224384,1747361438401,-1319.31,0.00013698,2]
[361224385,1747361438411,-450.0,0.00013698,2]
[361224386,1747361438420,-629.23,0.00013698,2]
[361224388,1747361438429,-401.38135892,0.00013698,2]
[361224390,1747361438438,-450.0,0.00013698,2]
[361224392,1747361438449,-603.47,0.00013698,2]
[361224394,1747361438459,-401.22053005,0.00013698,2]
[361224396,1747361438468,-498.01,0.00013698,2]
[361224398,1747361438477,-450.0,0.00013698,2]
[361224400,1747361438486,-1180.3,0.00013698,2]
[361224402,1747361438495,-450.0,0.00013698,2]
[361224404,1747361438504,-613.98,0.00013698,2]
[361224406,1747361438514,-303.09730159,0.00013698,2]
[361224408,1747361438524,-470.9,0.00013698,2]
[361224410,1747361438536,-545.02,0.00013698,2]
[361224412,1747361438545,-450.0,0.00013698,2]
[361224413,1747361438554,-6873.85,0.00013698,2]
[361224414,1747361438564,-2278.44,0.00013698,2]
[361224415,1747361438573,-554.36864037,0.00013698,2]
[361224416,1747361438582,-1008.21,0.00013698,2]
[361224417,1747361438591,-450.0,0.00013698,2]
[361224418,1747361438600,-450.0,0.00013698,2]
[361224419,1747361438610,-2511.26,0.00013698,2]
[361224420,1747361438620,-1268.77,0.00013698,2]
[361224421,1747361438629,-1210.28,0.00013698,2]
[361224422,1747361438638,-712.37,0.00013698,2]
[361224423,1747361438647,-2098.03,0.00013698,2]
[361224424,1747361438657,-450.0,0.00013698,2]
[361224425,1747361438667,-1229.56,0.00013698,2]
[361224426,1747361438676,-470.36,0.00013698,2]
[361224427,1747361438685,-517.25,0.00013698,2]
[361224428,1747361438695,-3061.36,0.00013698,2]
[361224429,1747361438704,-402.61439152,0.00013698,2]
[361224430,1747361438713,-404.92665766,0.00013698,2]
[361224431,1747361438722,-450.0,0.00013698,2]
[361224432,1747361438732,-1445.03,0.00013698,2]
[361224433,1747361438741,-1389.15,0.00013698,2]
[361224434,1747361438751,-402.9994622,0.00013698,2]
[361224435,1747361438760,-744.4,0.00013698,2]
[361224436,1747361438769,-1809.5,0.00013698,2]
[361224437,1747361438779,-2750.91,0.00013698,2]
[361224438,1747361438788,-450.0,0.00013698,2]
[361224439,1747361438797,-406.99687773,0.00013698,2]
[361224440,1747361438806,-3637.98,0.00013698,2]
[361224441,1747361438815,-2386.64,0.00013698,2]
[361224442,1747361438824,-450.0,0.00013698,2]
[361224443,1747361438834,-571.44,0.00013698,2]
[361224444,1747361438843,-2938.22,0.00013698,2]
[361224445,1747361438853,-505.45,0.00013698,2]
[361224446,1747361438862,-422.16369614,0.00013698,2]
[361224447,1747361438872,-4090.31,0.00013698,2]
[361224448,1747361438881,-509.7,0.00013698,2]
[361224449,1747361438890,-450.0,0.00013698,2]
[361224450,1747361438900,-850.33,0.00013698,2]
[361224451,1747361438909,-3382.79,0.00013698,2]
[361224452,1747361438919,-404.92463369,0.00013698,2]
[361224453,1747361438928,-533.29,0.00013698,2]
[361224454,1747361438937,-408.06038696,0.00013698,2]
[361224455,1747361438947,-401.79823739,0.00013698,2]
[361224456,1747361438957,-556.17,0.00013698,2]
[361224457,1747361438966,-450.0,0.00013698,2]
[361224458,1747361438975,-450.0,0.00013698,2]
[361224459,1747361438985,-450.0,0.00013698,2]
[361224460,1747361438994,-1568.72,0.00013698,2]
[361224461,1747361439005,-450.0,0.00013698,2]
[361224462,1747361439014,-557.33151705,0.00013698,2]
[361224463,1747361439024,-450.0,0.00013698,2]
[361224464,1747361439034,-450.0,0.00013698,2]
[361224465,1747361439043,-646.47,0.00013698,2]
[361224466,1747361439053,-1417.52,0.00013698,2]
[361224467,1747361439062,-684.35,0.00013698,2]